bitfinex-derivatives/quotes_ETHF0:USTF0_20250726
["timestamp","ask_amount","ask_price","bid_price","bid_amount"]
[1753557074431,12.729,3745.4,3745.3,2.20090007]
[1753557074633,13.5485,3745.4,3745.3,2.20090007]
[1753557074930,14.08232,3745.4,3745.3,2.20090007]
[1753557077131,15.50262,3745.4,3745.3,2.20090007]
[1753557077729,5.18032,3745.4,3745.3,2.20090007]
[1753557078533,17.90832,3745.4,3745.3,2.20090007]
[1753557079333,5.18032,3745.4,3745.3,0.33930007]
[1753557079634,17.90832,3745.4,3745.3,0.33930007]
[1753557083236,17.90832,3745.4,3745.3,1.42450007]
[1753557083432,17.90832,3745.4,3745.3,2.20090007]
[1753557085431,2.19972,3745.4,3745.3,2.20090007]
[1753557085632,17.90732,3745.4,3745.3,2.20090007]
[1753557086634,5.18032,3745.4,3745.3,2.20090007]
[1753557086827,17.90732,3745.4,3745.3,2.20090007]
[1753557087332,5.18032,3745.4,3745.3,2.20090007]
[1753557087635,17.90262,3745.4,3745.3,2.20090007]
[1753557088837,5.17562,3745.4,3745.3,2.20090007]
[1753557089039,1.35332,3745.4,3745.3,2.20090007]
[1753557089231,14.08032,3745.4,3745.3,2.20090007]
[1753557089835,14.07932,3745.4,3745.3,2.20090007]
[1753557096940,15.47262,3745.4,3745.3,2.20090007]
[1753557097331,15.47262,3745.4,3745.3,2.73474007]
[1753557098143,15.47262,3745.4,3745.3,2.20090007]
[1753557098641,16.57102,3745.4,3745.3,2.20090007]
[1753557099142,3.84502,3745.4,3745.3,2.73474007]
[1753557099342,17.11812,3745.4,3745.3,2.73474007]
[1753557102443,13.5445,3745.4,3745.3,2.73474007]
[1753557102842,14.9378,3745.4,3745.3,2.73474007]
[1753557103144,4.578,3745.4,3745.3,2.73474007]
[1753557103344,17.303,3745.4,3745.3,2.73474007]
[1753557103941,4.578,3745.4,3745.3,2.73474007]
[1753557104252,17.302,3745.4,3745.3,2.73474007]
[1753557105746,17.83582,3745.4,3745.3,2.73474007]
[1753557106449,17.302,3745.4,3745.3,2.73474007]
[1753557107147,4.578,3745.4,3745.3,2.73474007]
[1753557107337,17.302,3745.4,3745.3,2.73474007]
[1753557108150,5.11182,3745.4,3745.3,2.73474007]
[1753557108351,17.83582,3745.4,3745.3,2.73474007]
[1753557108849,17.83582,3745.4,3745.3,2.73666272]
[1753557109143,0.8195,3745.4,3745.3,2.73666272]
[1753557109344,3.8593,3745.4,3745.3,2.73666272]
[1753557109541,4.578,3745.4,3745.3,2.73666272]
[1753557112154,4.578,3745.4,3745.3,2.73665701]
[1753557112845,4.578,3745.4,3745.3,2.73665992]
[1753557113446,4.578,3745.4,3745.3,2.39544]
[1753557115250,4.578,3745.4,3745.3,2.73663634]
[1753557137270,4.578,3745.4,3745.3,1.65055274]
[1753557137568,4.578,3745.4,3745.3,0.87415274]
[1753557137763,4.578,3745.4,3745.3,2.72465274]
[1753557140075,4.578,3745.4,3745.3,2.72450458]
[1753557143480,4.578,3745.4,3745.3,5.93230458]
[1753557145384,4.578,3745.4,3745.3,2.72450458]
[1753557145882,4.578,3745.4,3745.3,2.72471536]
[1753557157389,4.578,3745.4,3745.3,5.93251536]
[1753557157590,4.578,3745.4,3745.3,5.93264732]
[1753557163395,2.7609,3745.4,3745.3,5.93264732]
[1753557163785,3.7942,3745.4,3745.3,5.93264732]
[1753557163991,4.5078,3745.4,3745.3,5.93264732]
[1753557168794,2.5664,3745.4,3745.3,5.93264732]
[1753557168997,3.2078,3746.2,3745.8,1.2626]
[1753557168998,3.6825,3745.9,3745.8,1.2626]
[1753557169297,3.6825,3745.9,3745.8,3.26534351]
[1753557169795,3.6825,3745.9,3745.8,6.47314351]
[1753557169988,0.548,3746.2,3746.1,3.49342]
[1753557170296,2.9689,3746.4,3746.3,3.49339]
[1753557170495,2.9689,3746.4,3746.3,3.83406351]
[1753557170496,4.34362585,3746.4,3746.3,3.83406351]
[1753557171089,5.18112585,3746.4,3746.3,3.83406351]
[1753557171294,4.52,3746.4,3746.3,3.83406351]
[1753557171500,5.18101089,3746.4,3746.3,0.87436351]
[1753557171894,5.18101089,3746.4,3746.3,3.26526351]
[1753557174299,5.18101089,3746.4,3746.3,3.27313138]
[1753557174804,4.52,3746.4,3746.3,3.27313138]
[1753557175005,4.52,3746.4,3746.3,3.27302695]
[1753557175704,4.52,3746.4,3746.3,2.92459]
[1753557179910,4.52,3746.4,3746.3,3.27281326]
[1753557180113,4.52,3746.4,3746.3,3.83471326]
[1753557180504,4.52,3746.4,3746.3,3.27281326]
[1753557190810,4.52,3746.4,3746.3,3.27436124]
[1753557194416,4.52,3746.4,3746.3,3.83626124]
[1753557195215,4.52,3746.4,3746.3,3.27436124]
[1753557198617,5.05368,3746.4,3746.3,0.34977124]
[1753557199714,5.07991,3746.2,3746.1,3.74152]
[1753557199918,5.07991,3746.2,3746.1,4.07434484]
[1753557200422,5.07991,3746.2,3746.1,3.74152]
[1753557200920,5.07991,3746.2,3746.1,3.2078]
[1753557202625,1.33414,3746.6,3745.9,0.53375]
[1753557202626,5.07994,3746.0,3745.9,0.53375]
[1753557203321,1.6768,3745.6,3745.2,3.2078]
[1753557203621,4.5462,3745.4,3745.3,2.82884]
[1753557205922,5.08002,3745.4,3745.3,2.30084]
[1753557206122,5.08002,3745.4,3745.3,1.28024]
[1753557206324,4.5462,3745.4,3745.3,2.30084]
[1753557206525,4.5462,3745.4,3745.3,2.82884]
[1753557208524,2.7647,3745.4,3745.3,3.36184]
[1753557208723,0.8392,3745.4,3745.3,3.36184]
[1753557210126,3.5631,3745.7,3745.6,3.33459]
[1753557210326,2.5604,3745.7,3745.6,3.33459]
[1753557210522,0.7453,3745.7,3745.6,6.54239]
[1753557210727,0.7749,3746.0,3745.9,3.33455]
[1753557210922,3.5224,3746.2,3746.1,1.79122]
[1753557211123,3.5224,3746.2,3746.1,2.80152]
[1753557211425,4.2677,3746.2,3746.1,3.33452]
[1753557212027,0.7453,3746.2,3746.1,6.54232]
[1753557212527,4.2677,3746.8,3746.3,1.5433]
[1753557212825,4.2677,3746.8,3746.7,2.2678]
[1753557213027,4.92556141,3746.8,3746.7,2.80144]
[1753557214628,4.2677,3746.8,3746.7,2.80144]
[1753557215326,4.2677,3746.8,3746.1,3.2078]
[1753557215521,4.2677,3746.7,3746.6,0.53364]
[1753557215718,4.80134,3746.7,3746.6,0.53364]
[1753557216523,2.27846,3746.6,3746.5,0.53366]
[1753557216721,0.53367,3746.5,3746.4,1.0103]
[1753557216928,4.80137,3746.5,3746.4,1.0103]
[1753557217328,4.2677,3746.5,3746.4,2.26167]
[1753557218126,4.2677,3746.5,3746.4,2.80147]
[1753557218526,4.2677,3746.5,3746.3,0.53368]
[1753557218733,1.7448,3746.2,3746.1,4.75182]
[1753557218935,4.2677,3746.2,3746.1,6.00932]
[1753557220231,4.2677,3746.2,3746.1,6.54232]
[1753557222035,4.2677,3746.2,3746.1,6.00932]
[1753557224337,4.2677,3746.2,3746.1,6.54232]
[1753557225438,4.2677,3746.2,3746.1,6.00932]
[1753557226839,4.2677,3746.2,3746.1,2.80152]
[1753557227034,4.2677,3746.2,3746.1,0.53372]
[1753557227241,4.2677,3746.2,3746.1,1.54402]
[1753557227642,4.2677,3746.2,3746.1,2.26172]
[1753557227837,4.2677,3746.2,3746.1,2.80152]
[1753557236952,4.2677,3746.2,3746.1,2.26172]
[1753557237152,4.2677,3746.2,3746.1,1.25142]
[1753557238054,4.2677,3746.2,3746.1,2.24652]
[1753557240854,4.2677,3746.2,3746.0,3.2078]
[1753557241051,1.33411,3746.7,3745.5,4.3979]
[1753557241052,3.5554,3745.6,3745.5,4.3979]
[1753557241253,4.3465,3745.6,3745.5,4.3979]
[1753557241550,4.3465,3745.6,3745.5,5.92681]
[1753557242245,4.3465,3745.6,3745.5,6.43131]
[1753557243051,4.3465,3745.6,3745.5,5.92681]
[1753557251957,4.3465,3745.6,3745.5,2.71901]
[1753557252258,4.3465,3745.6,3745.5,5.92681]
[1753557253556,4.3465,3745.6,3745.5,3.74161]
[1753557253858,4.3465,3745.6,3745.5,5.92681]
[1753557254860,4.3465,3745.6,3745.5,5.42981]
[1753557255160,4.3465,3745.6,3745.5,5.92681]
[1753557262363,3.6434,3745.6,3745.5,6.43131]
[1753557262562,4.3465,3745.6,3745.5,5.92681]
[1753557266766,4.3465,3745.6,3745.5,7.83223714]
[1753557267869,2.5919,3745.6,3745.5,6.14403714]
[1753557269068,0.7413,3745.6,3745.5,6.62063714]
[1753557269263,0.7592,3745.9,3745.8,1.01927]
[1753557269264,1.2437,3745.9,3745.8,1.01927]
[1753557269464,1.2437,3745.9,3745.8,1.49587]
[1753557269867,2.0321,3745.9,3745.8,1.49587]
[1753557270364,0.7592,3745.9,3745.8,1.49587]
[1753557270570,1.7529,3746.2,3746.1,1.49581]
[1753557270775,1.2684,3746.2,3746.1,1.49581]
[1753557270964,2.5121,3746.2,3746.1,1.01921]
[1753557271365,2.5121,3746.2,3746.1,1.49581]
[1753557271869,2.5121,3746.2,3746.1,1.01921]
[1753557273167,4.2307,3746.2,3746.1,2.02851]
[1753557273465,4.2307,3746.2,3746.1,2.71971]
[1753557273775,1.6594,3745.9,3745.8,0.53376]
[1753557274070,4.2307,3745.9,3745.8,0.53376]
[1753557274271,4.2307,3745.9,3745.6,1.90576614]
[1753557274272,2.5713,3745.9,3745.6,1.90576614]
[1753557274469,4.76448,3745.7,3745.6,1.90576614]
[1753557274975,2.1932,3745.6,3745.5,2.43956614]
[1753557275275,4.7645,3745.6,3745.5,1.90576614]
[1753557276870,1.22871,3745.5,3745.4,2.91506614]
[1753557277072,2.4186,3745.4,3745.3,5.64740614]
[1753557277274,4.2307,3745.4,3745.3,5.64740614]
[1753557277771,4.2307,3745.4,3745.3,5.11356614]
[1753557277972,0.04407,3747.0,3745.2,1.90576614]
[1753557277973,4.76454,3745.3,3745.2,1.90576614]
[1753557278170,0.6949,3745.0,3744.9,3.74169]
[1753557278470,4.2307,3745.0,3744.9,5.44219]
[1753557278971,4.76458,3745.0,3744.9,4.9083]
[1753557279179,4.76458,3745.0,3744.9,3.2078]
[1753557280273,4.76458,3745.0,3744.9,4.2171]
[1753557280675,4.76458,3745.0,3744.9,3.2078]
[1753557280864,4.76461,3744.8,3744.7,1.0093]
[1753557281474,4.76461,3744.8,3744.7,2.71992]
[1753557281878,4.2307,3744.8,3744.7,2.71992]
[1753557282371,4.76461,3744.8,3744.7,2.71992]
[1753557282679,4.76461,3744.8,3744.7,2.186]
[1753557283272,4.2307,3744.8,3744.7,2.71992]
[1753557283472,4.76461,3744.8,3744.7,2.71992]
[1753557283771,4.76461,3744.8,3744.7,2.186]
[1753557284177,4.76461,3744.8,3744.7,2.71992]
[1753557285179,4.76461,3744.8,3744.7,2.186]
[1753557286080,4.76461,3744.8,3744.7,0.6912]
[1753557286281,2.19334,3744.6,3744.5,5.92775]
[1753557286580,4.2307,3744.6,3744.5,2.71995]
[1753557287578,4.2307,3744.6,3744.5,5.92775]
[1753557287777,4.2307,3744.6,3744.5,2.71995]
[1753557288580,4.2307,3744.6,3744.5,3.19655]
[1753557288781,0.7884,3744.6,3744.5,3.19655]
[1753557289479,1.5476,3744.6,3744.5,3.19655]
[1753557289680,3.5358,3744.6,3744.5,3.19655]
[1753557289981,4.2307,3744.6,3744.5,3.19655]
[1753557292380,1.7237,3745.0,3744.9,3.19649]
[1753557292581,2.2674,3745.2,3745.1,0.53387]
[1753557292884,3.0558,3745.2,3745.1,3.19647]
[1753557293083,3.5358,3745.2,3745.1,3.19647]
[1753557293381,1.2684,3745.2,3745.1,3.19647]
[1753557293586,1.5476,3745.4,3745.3,3.19644]
[1753557293886,0.7884,3745.4,3745.3,6.40424]
[1753557294077,23.069,3746.2,3745.3,6.40424]
[1753557294078,0.7592,3746.2,3745.9,0.6912]
[1753557294284,1.5574,3746.3,3746.2,1.71041]
[1753557294285,2.6831,3746.3,3746.2,1.71041]
[1753557294481,3.3459699,3746.3,3746.2,2.71971]
[1753557294786,3.4715,3746.3,3746.2,2.71971]
[1753557294985,4.2307,3746.3,3746.2,3.19631]
[1753557297478,4.2307,3746.3,3746.2,2.71971]
[1753557299793,4.2307,3746.3,3746.2,2.186]
[1753557300195,4.7644,3746.3,3746.2,2.186]
[1753557300892,4.1398,3746.0,3745.9,3.2078]
[1753557301095,2.4672,3745.9,3745.7,1.48427]
[1753557301294,4.1398,3745.9,3745.8,0.53377]
[1753557301489,4.1398,3745.9,3745.8,1.48427]
[1753557301690,4.1398,3745.9,3745.8,2.12627]
[1753557302494,4.1398,3745.9,3745.8,1.5925]
[1753557302889,4.1398,3745.9,3745.8,2.12627]
[1753557303089,4.1398,3745.9,3745.8,2.60737]
[1753557308297,4.1398,3745.9,3745.8,2.12627]
[1753557309596,4.1398,3745.9,3745.8,2.60737]
[1753557330619,1.6076,3745.7,3745.5,3.2078]
[1753557330913,4.6029,3745.6,3745.5,3.2078]
[1753557334516,1.51422,3745.4,3745.3,0.53383]
[1753557334721,4.60292,3745.4,3745.3,0.9908]
[1753557335419,4.60292,3745.4,3745.3,1.52464]
[1753557335625,4.60292,3745.4,3745.3,0.9908]
[1753557337818,3.85297,3745.2,3745.1,0.9908]
[1753557338023,4.60297,3745.2,3745.1,2.1583]
[1753557341626,4.0691,3745.2,3745.1,2.1583]
[1753557342126,4.60295,3745.2,3745.1,2.1583]
[1753557342625,4.60295,3745.2,3745.1,2.69217]
[1753557342923,4.0691,3745.2,3745.1,2.69217]
[1753557343123,4.0691,3745.2,3745.1,2.1583]
[1753557343429,4.0691,3745.2,3745.1,2.69217]
[1753557345216,3.6862,3745.7,3745.6,0.5338]
[1753557345420,4.1882,3745.7,3745.6,3.1142]
[1753557345822,5.6779,3745.7,3745.6,3.1142]
[1753557346226,0.7397,3745.7,3745.6,3.1142]
[1753557346427,1.7218,3746.0,3745.9,3.11415]
[1753557346933,3.4419,3746.0,3745.9,3.11415]
[1753557348029,3.4419,3746.0,3745.9,2.5804]
[1753557348229,4.0691,3746.0,3745.9,2.1583]
[1753557348730,4.0691,3746.0,3745.9,2.69205]
[1753557349425,4.0691,3746.0,3745.9,2.1583]
[1753557349826,4.0691,3746.0,3745.9,2.69205]
[1753557351327,4.0691,3746.0,3745.9,3.11415]
[1753557352329,4.0691,3746.0,3745.9,2.69205]
[1753557359830,3.4419,3746.0,3745.9,3.08765]
[1753557360133,1.4897,3746.0,3745.9,3.08765]
[1753557360330,0.9518,3746.4,3746.1,0.6076]
[1753557360535,1.6749,3746.8,3746.7,0.6076]
[1753557360836,1.6749,3746.8,3746.7,2.98103]
[1753557360837,2.6674,3746.8,3746.7,2.98103]
[1753557361029,3.3611,3746.8,3746.7,2.98103]
[1753557361228,3.9704,3746.8,3746.7,2.98103]
[1753557362829,3.9704,3746.8,3746.7,2.0518]
[1753557363236,3.9704,3746.8,3746.7,2.58544]
[1753557363833,3.9704,3746.8,3746.7,2.0518]
[1753557364433,4.50402,3746.8,3746.7,2.0518]
[1753557364637,3.9704,3746.8,3746.7,2.0518]
[1753557366138,3.9704,3746.8,3746.7,2.58544]
[1753557366740,3.9704,3746.8,3746.7,2.98104]
[1753557367838,3.9704,3746.8,3746.7,2.58544]
[1753557369539,3.9704,3746.8,3746.7,2.96964]
[1753557369739,2.4093,3746.8,3746.7,2.96964]
[1753557370743,3.3611,3746.8,3746.7,2.96964]
[1753557371144,3.9704,3746.8,3746.7,2.96964]
[1753557371343,3.9704,3746.8,3746.7,2.58544]
[1753557382151,3.9704,3746.6,3746.5,3.2078]
[1753557382349,3.9704,3746.5,3746.4,2.0518]
[1753557382552,3.9704,3746.5,3746.4,2.58548]
[1753557382848,3.9704,3746.5,3746.4,5.79328]
[1753557385958,3.9704,3746.5,3746.4,5.2596]
[1753557386564,3.9704,3746.5,3746.4,5.30068]
[1753557387756,3.9704,3746.5,3746.4,5.79328]
[1753557387958,3.9704,3746.5,3746.4,6.16278]
[1753557388563,3.9704,3746.5,3746.4,5.79328]
[1753557393466,3.9704,3746.5,3746.4,2.58548]
[1753557394368,3.9704,3746.5,3746.4,5.79328]
[1753557407279,3.9704,3746.5,3746.4,3.74148]
[1753557407477,1.5322,3746.2,3746.0,3.2078]
[1753557407681,1.5322,3746.2,3746.1,0.53372]
[1753557408380,3.9375,3746.2,3746.1,0.53372]
[1753557412281,3.9375,3746.1,3746.0,0.53373]
[1753557412480,1.6899,3746.0,3745.9,0.53375]
[1753557412685,3.9375,3746.0,3745.9,0.53375]
[1753557413380,3.9375,3745.9,3745.8,0.53376]
[1753557414289,3.9375,3745.9,3745.8,1.47906]
[1753557419690,3.9375,3745.9,3745.8,2.11166]
[1753557420190,3.9375,3745.9,3745.8,1.16636]
[1753557420784,3.9375,3745.9,3745.8,2.13386]
[1753557422396,3.9375,3745.9,3745.8,0.53376]
[1753557422598,3.9375,3745.9,3745.8,0.53377]
[1753557422896,3.9081,3745.8,3745.7,0.53377]
[1753557423693,3.9081,3745.8,3745.7,1.50127]
[1753557423888,3.9081,3745.8,3745.7,2.10127]
[1753557424293,0.53378,3745.7,3745.6,3.2078]
[1753557424591,4.44188,3745.7,3745.6,3.2078]
[1753557427695,2.09841,3745.5,3745.4,0.53382]
[1753557427894,2.09843,3745.4,3745.3,0.53383]
[1753557428187,3.8581,3745.4,3745.3,0.53383]
[1753557428393,3.8581,3745.4,3745.3,2.10133]
[1753557429188,0.7266,3745.7,3745.6,1.5958]
[1753557429383,1.687,3745.9,3745.8,1.59577]
[1753557429583,1.687,3745.9,3745.8,2.90717]
[1753557429787,2.3911,3745.9,3745.8,2.90717]
[1753557429985,3.3039,3745.9,3745.8,2.90717]
[1753557430186,0.7041,3745.9,3745.8,2.90717]
[1753557432798,1.4307,3745.9,3745.8,2.90717]
[1753557432996,3.9081,3745.9,3745.8,2.56327]
[1753557434597,3.9081,3745.9,3745.8,2.0295]
[1753557434598,4.44185,3745.9,3745.8,2.0295]
[1753557434999,3.9081,3745.9,3745.8,2.0295]
[1753557435897,3.9081,3745.9,3745.8,2.56327]
[1753557436098,3.9081,3745.9,3745.8,2.0295]
[1753557436300,3.9081,3745.9,3745.8,2.56327]
[1753557436301,4.44185,3745.9,3745.8,2.56327]
[1753557436907,4.44185,3745.9,3745.8,1.13377]
[1753557437601,4.44185,3745.9,3745.8,2.10127]
[1753557437803,3.9081,3745.9,3745.8,2.10127]
[1753557438199,4.44185,3745.9,3745.8,2.10127]
[1753557441809,4.44185,3745.9,3745.8,1.5675]
[1753557442207,4.44189,3745.7,3745.6,1.5675]
[1753557442409,3.4362,3745.4,3745.3,0.9675]
[1753557442606,0.53382,3745.4,3745.0,1.062]
[1753557442806,3.9081,3745.2,3745.1,2.10137]
[1753557443007,3.9081,3745.2,3745.1,2.56337]
[1753557443911,4.44195,3745.2,3745.1,2.0295]
[1753557444211,4.44195,3745.2,3745.1,1.5675]
[1753557444910,3.9081,3745.2,3745.1,2.10137]
[1753557445608,3.9081,3745.2,3745.1,1.5675]
[1753557446414,3.9081,3745.2,3745.0,0.53387]
[1753557446711,3.9081,3745.1,3745.0,2.56337]
[1753557448916,3.9081,3745.1,3744.8,3.2078]
[1753557448917,1.4397,3745.0,3744.8,3.7417]
[1753557449117,3.9221,3744.9,3744.8,5.2382]
[1753557449324,3.9221,3744.9,3744.8,5.77211]
[1753557452317,3.9221,3744.9,3744.8,5.2382]
[1753557452519,4.45599,3744.9,3744.8,1.5775]
[1753557452817,1.5345,3744.8,3744.7,0.9529]
[1753557453019,3.9221,3744.8,3744.7,0.9529]
[1753557453713,4.45601,3744.8,3744.7,0.9529]
[1753557453915,3.9221,3744.8,3744.7,1.48682]
[1753557454115,3.9221,3744.8,3744.7,0.9529]
[1753557454316,1.5345,3744.8,3744.5,1.48685]
[1753557454619,2.9742,3744.5,3744.4,8.15411732]
[1753557454820,3.9221,3744.5,3744.4,8.15411732]
[1753557455021,3.9221,3744.5,3744.4,7.16725732]
[1753557455716,3.9221,3744.5,3744.4,5.58975732]
[1753557455917,4.45603,3744.5,3744.4,5.58975732]
[1753557456221,4.45603,3744.5,3744.4,3.2078]
[1753557456420,3.9221,3744.5,3744.4,3.8324]
[1753557456618,3.9221,3744.5,3744.4,5.77214]
[1753557456821,3.9221,3744.5,3744.4,5.2382]
[1753557457421,3.9221,3744.5,3744.4,5.77214]
[1753557457621,3.9221,3744.5,3744.4,5.2382]
[1753557458423,4.45603,3744.5,3744.4,5.2382]
[1753557458921,4.45603,3744.5,3744.4,3.8324]
[1753557459824,4.45603,3744.5,3744.4,4.7853]
[1753557460219,3.9221,3744.5,3744.4,4.7853]
[1753557460524,3.9221,3744.5,3744.4,5.77214]
[1753557461022,4.45603,3744.5,3744.4,5.2382]
[1753557464525,3.9221,3744.5,3744.4,5.2382]
[1753557464927,3.9221,3744.5,3744.4,5.77214]
[1753557465426,4.45603,3744.5,3744.4,5.77214]
[1753557466028,3.3058,3744.5,3744.4,6.09134]
[1753557466228,0.7204,3744.5,3744.4,6.09134]
[1753557466627,0.7204,3745.0,3744.9,2.88347]
[1753557467525,0.9479,3745.3,3745.2,0.53383]
[1753557467730,0.7204,3745.3,3745.2,5.5574]
[1753557467930,4.45591,3745.3,3745.2,5.2382]
[1753557470133,4.45591,3745.3,3745.2,4.7853]
[1753557471030,4.45591,3745.3,3745.2,5.2382]
[1753557471533,3.9221,3745.3,3745.2,5.77203]
[1753557471727,4.45591,3745.3,3745.2,5.77203]
[1753557472633,3.9221,3745.3,3745.2,5.77203]
[1753557473833,4.45591,3745.3,3745.2,5.77203]
[1753557474337,4.45591,3745.3,3745.2,5.5574]
[1753557474937,4.45591,3745.3,3745.2,5.2382]
[1753557482242,1.25421,3745.3,3745.2,5.2382]
[1753557482437,1.25421,3745.3,3745.2,5.5326]
[1753557482841,4.32331,3745.3,3745.2,5.5326]
[1753557483036,3.42028,3746.2,3746.1,1.971]
[1753557483239,3.8931,3746.6,3746.1,2.79909]
[1753557483437,1.33699117,3746.5,3746.4,2.2654]
[1753557483738,0.6706,3746.8,3746.7,1.0467]
[1753557483948,0.6706,3746.8,3746.7,2.2654]
[1753557484833,0.04407,3747.0,3746.7,2.2654]
[1753557485034,0.2,3747.9,3746.7,2.2654]
[1753557485035,0.6706,3747.8,3747.7,0.4602]
[1753557485239,0.2,3747.9,3747.7,0.4602]
[1753557485240,0.2,3747.9,3747.8,2.79885]
[1753557485639,3.0691,3749.0,3748.9,1.0467]
[1753557485942,3.7397,3749.0,3748.9,1.971]
[1753557486336,2.73458,3749.0,3748.9,1.971]
[1753557486541,4.27298,3749.0,3748.9,1.971]
[1753557487545,3.7397,3749.0,3748.9,1.971]
[1753557487742,1.5924,3749.0,3748.9,2.2654]
[1753557487936,0.6706,3749.0,3748.9,2.2654]
[1753557488740,1.20388,3749.0,3748.9,2.59970291]
[1753557489046,0.6706,3749.0,3748.9,2.59970291]
[1753557489440,0.6706,3749.0,3748.9,2.2654]
[1753557489641,0.6706,3749.2,3748.9,1.38045677]
[1753557489847,0.6706,3749.2,3749.1,5.4732]
[1753557490046,0.6706,3749.2,3749.1,5.80695677]
[1753557491047,1.20386,3749.2,3749.1,5.80695677]
[1753557491247,0.6706,3749.2,3749.1,5.80695677]
[1753557491548,1.20386,3749.2,3749.1,5.80695677]
[1753557491747,0.6706,3749.2,3749.1,5.80695677]
[1753557492147,1.20386,3749.2,3749.1,5.80695677]
[1753557492447,2.81096,3749.2,3749.1,5.80695677]
[1753557493247,3.66406,3749.2,3749.1,5.80695677]
[1753557493646,3.66406,3749.2,3749.1,5.51255677]
[1753557493847,3.66406,3749.2,3749.1,5.51120523]
[1753557494457,4.27296,3749.2,3749.1,5.51120523]
[1753557495750,3.7397,3749.2,3749.1,5.51120523]
[1753557496456,0.6706,3749.2,3749.1,5.51120523]
[1753557496665,0.6706,3749.2,3749.1,5.80560523]
[1753557496954,0.6706,3749.2,3749.1,6.33887523]
[1753557497155,0.6706,3749.2,3749.1,5.80560523]
[1753557497455,0.6706,3749.2,3749.1,6.33887523]
[1753557501661,0.6706,3749.2,3749.1,6.34095591]
[1753557503960,1.3559,3749.2,3749.1,6.34095591]
[1753557505164,1.8123,3749.2,3749.1,6.34095591]
[1753557505558,2.2777,3749.2,3749.1,6.34095591]
[1753557505763,3.1308,3749.2,3749.1,6.34095591]
[1753557506072,0.6706,3749.2,3749.1,6.34095591]
[1753557512968,0.6706,3749.2,3749.1,6.34284241]
[1753557514667,0.6706,3749.2,3749.1,6.34399355]
[1753557515176,3.089,3749.2,3749.1,6.34399355]
[1753557515970,3.6688,3749.2,3749.1,6.04995055]
[1753557518778,3.6688,3749.2,3749.1,5.58975055]
[1753557518980,3.6688,3749.2,3749.1,4.66545055]
[1753557519180,3.6688,3749.2,3749.1,5.56565055]
[1753557519479,3.6688,3749.2,3749.1,5.98845055]
[1753557526983,3.6688,3749.2,3749.1,5.65057]
[1753557530685,3.1982,3749.9,3749.8,0.53317]
[1753557530885,3.86433502,3749.9,3749.8,0.53317]
[1753557532683,4.54073502,3749.9,3749.8,0.53317]
[1753557533285,4.54078362,3749.9,3749.8,0.53317]
[1753557534080,0.4553,3749.7,3749.6,3.2078]
[1753557534276,3.6746,3749.7,3749.6,3.741]
[1753557534483,2.7718852,3750.7,3749.6,3.741]
[1753557534484,0.6961864,3751.3,3751.0,0.9978]
[1753557534676,3.6746,3751.1,3751.0,2.431]
[1753557534881,3.6746,3751.1,3751.0,5.6388]
[1753557535388,3.6746,3751.1,3751.0,8.16794217]
[1753557535581,3.6746,3751.1,3751.0,6.2684]
[1753557536385,1.6853,3751.9,3751.8,4.16249]
[1753557536586,1.6853,3751.9,3751.8,3.2078]
[1753557536889,6.6853,3751.9,3751.7,0.53289]
[1753557537183,1.6853,3751.9,3751.8,0.87753876]
[1753557537387,1.6853,3751.9,3751.8,0.34464876]
[1753557537684,6.6853,3751.9,3751.8,0.34464876]
[1753557538288,8.3891,3751.9,3751.8,0.87753876]
[1753557538683,8.3891,3751.9,3751.8,0.34464876]
[1753557538885,1.2401,3751.7,3751.6,0.5329]
[1753557539184,2.9439,3751.7,3751.6,0.5329]
[1753557540186,2.9439,3751.7,3751.6,0.76514273]
[1753557540388,2.9439,3751.7,3751.6,0.76488322]
[1753557540789,8.4768,3751.7,3751.4,3.74073]
[1753557541090,1.2401,3751.6,3751.4,3.2078]
[1753557541291,1.2401,3751.6,3751.5,0.53293]
[1753557541491,6.2401,3751.6,3751.5,0.53293]
[1753557541690,7.5459,3751.6,3751.5,0.53293]
[1753557541991,2.5459,3751.6,3751.5,1.23543]
[1753557545795,7.5459,3751.6,3751.5,0.53293]
[1753557546094,2.4609,3751.6,3751.5,3.73773]
[1753557546301,2.5459,3751.6,3751.5,1.23543]
[1753557546696,7.5459,3751.6,3751.5,0.7025]
[1753557547103,6.2401,3751.6,3751.4,0.53294]
[1753557547400,2.5117,3751.5,3751.4,1.23544]
[1753557547700,2.5117,3751.5,3750.8,4.54036]
[1753557547701,1.3058,3751.2,3751.1,0.7025]
[1753557547902,2.5117,3751.2,3751.1,1.23549]
[1753557548201,3.04467,3751.2,3751.1,1.23549]
[1753557548401,2.5117,3751.2,3751.1,1.23549]
[1753557549100,2.5117,3751.2,3750.1,1.8968251]
[1753557549101,0.53311,3750.2,3750.1,1.8968251]
[1753557549300,24.9258,3750.2,3749.3,0.9131]
[1753557549490,3.2078,3749.4,3749.3,3.095]
[1753557549898,3.2078,3749.4,3749.3,3.7975]
[1753557550901,3.74103,3749.4,3749.3,3.7975]
[1753557552407,3.74103,3749.4,3749.3,0.7025]
[1753557553204,3.74103,3749.4,3749.3,0.92706086]
[1753557556607,8.74103,3749.4,3749.3,0.22456086]
[1753557556810,8.74103,3749.4,3748.9,0.6793]
[1753557556811,0.53328,3749.0,3748.9,1.3818]
[1753557557015,3.74108,3749.0,3748.9,0.92719749]
[1753557557209,8.74108,3749.0,3748.9,0.7025]
[1753557558212,3.74108,3749.0,3748.9,2.8876]
[1753557558406,3.74108,3749.0,3748.9,3.7975]
[1753557558715,3.74108,3749.0,3748.9,3.1182]